[Event "Titled Tuesday Blitz June 07 Late 2022"]
[White "Chigaev, Maksim"]
[Black "Araujo Sanchez, Josue"]
[WhiteFideId "4108116"]
[BlackFideId "6416896"]
[WhiteElo "2457"]
[BlackElo "2339"]
[Result "0-1"]
[Round "09"]
[TimeControl "180+1"]
[Date "2022.06.07"]
[WhiteClock "0:00:06"]
[BlackClock "0:00:36"]

1. d4 {[%clk 0:03:00]}  Nf6 {[%clk 0:02:58]} 2. c4 {[%clk 0:03:01]}  e6 {[%clk 0:02:57]} 3. Nf3 {[%clk 0:03:01]}  d5 {[%clk 0:02:58]} 4. g3 {[%clk 0:03:01]}  dxc4 {[%clk 0:02:58]} 5. Bg2 {[%clk 0:03:01]}  Nc6 {[%clk 0:02:57]} 6. O-O {[%clk 0:02:58]}  a6 {[%clk 0:02:57]} 7. a4 {[%clk 0:02:51]}  Rb8 {[%clk 0:02:57]} 8. a5 {[%clk 0:02:51]}  b5 {[%clk 0:02:56]} 9. axb6 {[%clk 0:02:34]}  cxb6 {[%clk 0:02:57]} 10. Bf4 {[%clk 0:02:19]}  Bd6 {[%clk 0:02:48]} 11. Ne5 {[%clk 0:02:18]}  Ne7 {[%clk 0:02:44]} 12. Bc6+ {[%clk 0:02:05]}  Kf8 {[%clk 0:02:40]} 13. Bg2 {[%clk 0:02:04]}  b5 {[%clk 0:02:39]} 14. b3 {[%clk 0:02:04]}  cxb3 {[%clk 0:02:35]} 15. Qxb3 {[%clk 0:02:05]}  Nfd5 {[%clk 0:02:18]} 16. Bd2 {[%clk 0:02:02]}  Bb7 {[%clk 0:02:07]} 17. e4 {[%clk 0:01:53]}  Nb6 {[%clk 0:01:58]} 18. Rc1 {[%clk 0:01:36]}  Bxe5 {[%clk 0:01:48]} 19. dxe5 {[%clk 0:01:36]}  Nc6 {[%clk 0:01:47]} 20. Bc3 {[%clk 0:01:17]}  Kg8 {[%clk 0:01:42]} 21. Nd2 {[%clk 0:01:05]}  h6 {[%clk 0:01:41]} 22. h4 {[%clk 0:01:03]}  Kh7 {[%clk 0:01:41]} 23. Nf3 {[%clk 0:00:52]}  Qe7 {[%clk 0:01:38]} 24. g4 {[%clk 0:00:49]}  Rhd8 {[%clk 0:01:36]} 25. g5 {[%clk 0:00:49]}  Rd3 {[%clk 0:01:17]} 26. Qc2 {[%clk 0:00:44]}  Rbd8 {[%clk 0:01:14]} 27. Qe2 {[%clk 0:00:40]}  Nc4 {[%clk 0:01:07]} 28. Be1 {[%clk 0:00:38]}  N6xe5 {[%clk 0:00:53]} 29. Nxe5 {[%clk 0:00:35]}  Nxe5 {[%clk 0:00:54]} 30. f4 {[%clk 0:00:33]}  Nc4 {[%clk 0:00:53]} 31. Bf2 {[%clk 0:00:27]}  Rd2 {[%clk 0:00:52]} 32. Qe1 {[%clk 0:00:26]}  Rb2 {[%clk 0:00:49]} 33. Rab1 {[%clk 0:00:21]}  Rxb1 {[%clk 0:00:48]} 34. Rxb1 {[%clk 0:00:22]}  e5 {[%clk 0:00:47]} 35. f5 {[%clk 0:00:18]}  hxg5 {[%clk 0:00:47]} 36. hxg5 {[%clk 0:00:19]}  Rd2 {[%clk 0:00:42]} 37. Be3 {[%clk 0:00:05]}  Rxg2+ {[%clk 0:00:41]} 38. Kxg2 {[%clk 0:00:05]}  Bxe4+ {[%clk 0:00:41]} 39. Kf2 {[%clk 0:00:05]}  Bxb1 {[%clk 0:00:41]} 40. Qh1+ {[%clk 0:00:06]}  Kg8 {[%clk 0:00:36]} 0-1


[Site "https://www.chess.com"]

[Event "Titled Tuesday Blitz June 07 Late 2022"]
[White "Domingo Nunez, Ruben"]
[Black "Manelyuk, Daniil"]
[WhiteFideId "22245570"]
[BlackFideId "44173920"]
[WhiteElo "2376"]
[BlackElo "2209"]
[Result "1-0"]
[Round "09"]
[TimeControl "180+1"]
[Date "2022.06.07"]
[WhiteClock "0:00:58"]
[BlackClock "0:00:03"]

1. c4 {[%clk 0:03:00]}  c5 {[%clk 0:02:56]} 2. Nc3 {[%clk 0:03:00]}  Nc6 {[%clk 0:02:53]} 3. g3 {[%clk 0:03:01]}  g6 {[%clk 0:02:52]} 4. Bg2 {[%clk 0:03:01]}  Bg7 {[%clk 0:02:52]} 5. d3 {[%clk 0:03:00]}  e5 {[%clk 0:02:52]} 6. h4 {[%clk 0:02:58]}  h5 {[%clk 0:02:50]} 7. Nd5 {[%clk 0:02:54]}  d6 {[%clk 0:02:42]} 8. Rb1 {[%clk 0:02:51]}  a5 {[%clk 0:02:41]} 9. a3 {[%clk 0:02:50]}  Be6 {[%clk 0:02:36]} 10. Nh3 {[%clk 0:02:50]}  Nge7 {[%clk 0:02:32]} 11. Ng5 {[%clk 0:02:41]}  O-O {[%clk 0:02:18]} 12. Bd2 {[%clk 0:02:37]}  a4 {[%clk 0:02:17]} 13. Nc3 {[%clk 0:02:34]}  Qa5 {[%clk 0:01:43]} 14. O-O {[%clk 0:02:21]}  Rfd8 {[%clk 0:00:55]} 15. Nd5 {[%clk 0:02:10]}  Qa7 {[%clk 0:00:50]} 16. Nc7 {[%clk 0:02:09]}  Nd4 {[%clk 0:00:48]} 17. Nxa8 {[%clk 0:01:53]}  Qxa8 {[%clk 0:00:44]} 18. e3 {[%clk 0:01:54]}  Nb3 {[%clk 0:00:43]} 19. Nxe6 {[%clk 0:01:54]}  fxe6 {[%clk 0:00:43]} 20. Bc3 {[%clk 0:01:55]}  Qa6 {[%clk 0:00:39]} 21. g4 {[%clk 0:01:42]}  d5 {[%clk 0:00:34]} 22. cxd5 {[%clk 0:01:37]}  exd5 {[%clk 0:00:34]} 23. gxh5 {[%clk 0:01:37]}  d4 {[%clk 0:00:34]} 24. exd4 {[%clk 0:01:30]}  exd4 {[%clk 0:00:26]} 25. Bd2 {[%clk 0:01:31]}  Qxd3 {[%clk 0:00:22]} 26. Bg5 {[%clk 0:01:31]}  Qxd1 {[%clk 0:00:20]} 27. Rbxd1 {[%clk 0:01:32]}  Rd7 {[%clk 0:00:19]} 28. Bh3 {[%clk 0:01:25]}  Rc7 {[%clk 0:00:15]} 29. hxg6 {[%clk 0:01:07]}  Nxg6 {[%clk 0:00:14]} 30. Be6+ {[%clk 0:01:07]}  Kh7 {[%clk 0:00:13]} 31. Bf5 {[%clk 0:01:08]}  Rf7 {[%clk 0:00:12]} 32. Bd3 {[%clk 0:01:07]}  Bh6 {[%clk 0:00:06]} 33. h5 {[%clk 0:01:07]}  Kg7 {[%clk 0:00:03]} 34. hxg6 {[%clk 0:01:04]}  Rf3 {[%clk 0:00:03]} 35. Bxh6+ {[%clk 0:01:03]}  Kxh6 {[%clk 0:00:04]} 36. Kg2 {[%clk 0:01:04]}  Rf4 {[%clk 0:00:03]} 37. Rh1+ {[%clk 0:01:04]}  Kg5 {[%clk 0:00:02]} 38. g7 {[%clk 0:01:05]}  Rg4+ {[%clk 0:00:02]} 39. Kf1 {[%clk 0:01:05]}  Kf6 {[%clk 0:00:02]} 40. Rg1 {[%clk 0:01:03]}  Rxg7 {[%clk 0:00:02]} 41. Rxg7 {[%clk 0:01:03]}  Kxg7 {[%clk 0:00:03]} 42. Bc2 {[%clk 0:00:59]}  Na5 {[%clk 0:00:01]} 43. Bxa4 {[%clk 0:01:00]}  Nc4 {[%clk 0:00:02]} 44. Bb3 {[%clk 0:00:56]}  Nxb2 {[%clk 0:00:02]} 45. Rd2 {[%clk 0:00:56]}  c4 {[%clk 0:00:02]} 46. Rxb2 {[%clk 0:00:57]}  c3 {[%clk 0:00:02]} 47. Rc2 {[%clk 0:00:57]}  Kf6 {[%clk 0:00:02]} 48. Ke2 {[%clk 0:00:57]}  Ke5 {[%clk 0:00:03]} 49. Kd3 {[%clk 0:00:58]}  b5 {[%clk 0:00:03]} 50. Re2+ {[%clk 0:00:58]}  Kd6 {[%clk 0:00:03]} 51. Kxd4 {[%clk 0:00:58]} 1-0


[Site "https://www.chess.com"]

[Event "Titled Tuesday Blitz June 07 Late 2022"]
[White "Ferreira, Vitor Hugo Vieira"]
[Black "Barp, Alberto"]
[WhiteFideId "2119765"]
[BlackFideId "872555"]
[WhiteElo "2165"]
[BlackElo "2229"]
[Result "0-1"]
[Round "09"]
[TimeControl "180+1"]
[Date "2022.06.07"]
[WhiteClock "0:00:04"]
[BlackClock "0:00:20"]

1. d4 {[%clk 0:03:00]}  Nf6 {[%clk 0:02:59]} 2. c4 {[%clk 0:03:00]}  e6 {[%clk 0:02:59]} 3. Nf3 {[%clk 0:03:00]}  d5 {[%clk 0:02:57]} 4. Nc3 {[%clk 0:02:59]}  Bb4 {[%clk 0:02:55]} 5. Qa4+ {[%clk 0:02:58]}  Nc6 {[%clk 0:02:55]} 6. e3 {[%clk 0:02:48]}  O-O {[%clk 0:02:54]} 7. Bd3 {[%clk 0:02:46]}  a6 {[%clk 0:02:48]} 8. O-O {[%clk 0:02:39]}  Bd7 {[%clk 0:02:40]} 9. Qc2 {[%clk 0:02:38]}  dxc4 {[%clk 0:02:34]} 10. Bxc4 {[%clk 0:02:37]}  Bd6 {[%clk 0:02:35]} 11. a3 {[%clk 0:02:34]}  e5 {[%clk 0:02:32]} 12. Rd1 {[%clk 0:02:05]}  Qe7 {[%clk 0:02:27]} 13. Nd5 {[%clk 0:01:58]}  Nxd5 {[%clk 0:02:25]} 14. Bxd5 {[%clk 0:01:58]}  Rae8 {[%clk 0:02:18]} 15. dxe5 {[%clk 0:01:55]}  Nxe5 {[%clk 0:02:16]} 16. Bxb7 {[%clk 0:01:51]}  Bg4 {[%clk 0:02:07]} 17. Be4 {[%clk 0:01:43]}  f5 {[%clk 0:01:53]} 18. Bd5+ {[%clk 0:01:42]}  Kh8 {[%clk 0:01:54]} 19. Bd2 {[%clk 0:01:35]}  c6 {[%clk 0:01:49]} 20. Nxe5 {[%clk 0:01:16]}  Bxd1 {[%clk 0:01:41]} 21. Rxd1 {[%clk 0:01:07]}  Qxe5 {[%clk 0:01:40]} 22. Qxc6 {[%clk 0:01:03]}  Qxh2+ {[%clk 0:01:29]} 23. Kf1 {[%clk 0:01:03]}  Be5 {[%clk 0:01:24]} 24. Bc3 {[%clk 0:01:02]}  Rc8 {[%clk 0:01:20]} 25. Qxa6 {[%clk 0:00:39]}  Bxc3 {[%clk 0:01:16]} 26. bxc3 {[%clk 0:00:39]}  f4 {[%clk 0:01:12]} 27. exf4 {[%clk 0:00:34]}  Qxf4 {[%clk 0:00:49]} 28. Bf3 {[%clk 0:00:33]}  Rxc3 {[%clk 0:00:46]} 29. a4 {[%clk 0:00:20]}  Qh4 {[%clk 0:00:32]} 30. Kg1 {[%clk 0:00:16]}  Rc2 {[%clk 0:00:27]} 31. Qb6 {[%clk 0:00:14]}  Qxa4 {[%clk 0:00:24]} 32. Rd8 {[%clk 0:00:11]}  Qa1+ {[%clk 0:00:20]} 33. Kh2 {[%clk 0:00:10]}  Qe5+ {[%clk 0:00:20]} 34. g3 {[%clk 0:00:11]}  Rc8 {[%clk 0:00:19]} 35. Rxc8 {[%clk 0:00:09]}  Rxc8 {[%clk 0:00:20]} 36. Kg2 {[%clk 0:00:09]}  Rf8 {[%clk 0:00:20]} 37. Qa7 {[%clk 0:00:08]}  Qf6 {[%clk 0:00:21]} 38. Qe3 {[%clk 0:00:08]}  Qf7 {[%clk 0:00:20]} 39. Be4 {[%clk 0:00:07]}  Qe7 {[%clk 0:00:19]} 40. Qd3 {[%clk 0:00:07]}  Rd8 {[%clk 0:00:18]} 41. Qc2 {[%clk 0:00:06]}  g6 {[%clk 0:00:18]} 42. Qc3+ {[%clk 0:00:06]}  Qg7 {[%clk 0:00:18]} 43. Qe3 {[%clk 0:00:06]}  Rf8 {[%clk 0:00:18]} 44. f4 {[%clk 0:00:05]}  Qf6 {[%clk 0:00:19]} 45. Qf3 {[%clk 0:00:05]}  Kg7 {[%clk 0:00:20]} 46. Kf2 {[%clk 0:00:05]}  Rf7 {[%clk 0:00:20]} 47. Kg2 {[%clk 0:00:05]}  Re7 {[%clk 0:00:21]} 48. Bd5 {[%clk 0:00:06]}  Qd4 {[%clk 0:00:21]} 49. Kh3 {[%clk 0:00:06]}  Re3 {[%clk 0:00:20]} 50. Qg2 {[%clk 0:00:06]}  Qf6 {[%clk 0:00:20]} 51. Kh2 {[%clk 0:00:06]}  Qf5 {[%clk 0:00:19]} 52. Bf3 {[%clk 0:00:06]}  Qd3 {[%clk 0:00:19]} 53. Bc6 {[%clk 0:00:05]}  Re2 {[%clk 0:00:19]} 54. Ba8 {[%clk 0:00:03]}  Rxg2+ {[%clk 0:00:19]} 55. Bxg2 {[%clk 0:00:04]}  Qd2 {[%clk 0:00:20]} 0-1


[Site "https://www.chess.com"]

[Event "Titled Tuesday Blitz June 07 Late 2022"]
[White "Grigoriants, Sergey"]
[Black "Shimanov, Aleksandr"]
[WhiteFideId "4130804"]
[BlackFideId "4198603"]
[WhiteElo "2502"]
[BlackElo "2605"]
[Result "1-0"]
[Round "09"]
[TimeControl "180+1"]
[Date "2022.06.07"]
[WhiteClock "0:00:07"]
[BlackClock "0:00:02"]

1. e4 {[%clk 0:03:00]}  d5 {[%clk 0:02:56]} 2. exd5 {[%clk 0:03:00]}  Qxd5 {[%clk 0:02:57]} 3. Nf3 {[%clk 0:02:59]}  Bg4 {[%clk 0:02:55]} 4. Be2 {[%clk 0:02:56]}  Nc6 {[%clk 0:02:54]} 5. Nc3 {[%clk 0:02:53]}  Qd7 {[%clk 0:02:54]} 6. h3 {[%clk 0:02:52]}  Bf5 {[%clk 0:02:53]} 7. O-O {[%clk 0:02:46]}  O-O-O {[%clk 0:02:52]} 8. d3 {[%clk 0:02:41]}  e5 {[%clk 0:02:49]} 9. Be3 {[%clk 0:02:39]}  f6 {[%clk 0:02:35]} 10. a3 {[%clk 0:02:33]}  g5 {[%clk 0:02:33]} 11. b4 {[%clk 0:02:28]}  h5 {[%clk 0:02:33]} 12. Ne4 {[%clk 0:01:21]}  g4 {[%clk 0:02:32]} 13. Nh4 {[%clk 0:01:15]}  gxh3 {[%clk 0:02:32]} 14. g3 {[%clk 0:01:09]}  Nd4 {[%clk 0:01:56]} 15. Bxd4 {[%clk 0:01:04]}  exd4 {[%clk 0:01:56]} 16. Bf3 {[%clk 0:01:02]}  Bg4 {[%clk 0:01:49]} 17. Ng6 {[%clk 0:00:57]}  f5 {[%clk 0:00:59]} 18. Nxf8 {[%clk 0:00:35]}  Rxf8 {[%clk 0:01:00]} 19. Nc5 {[%clk 0:00:35]}  Qd6 {[%clk 0:00:56]} 20. Bxb7+ {[%clk 0:00:29]}  Kb8 {[%clk 0:00:54]} 21. Bf3 {[%clk 0:00:27]}  h4 {[%clk 0:00:49]} 22. Bxg4 {[%clk 0:00:24]}  hxg3 {[%clk 0:00:47]} 23. Qf3 {[%clk 0:00:21]}  c6 {[%clk 0:00:23]} 24. Qxg3 {[%clk 0:00:20]}  f4 {[%clk 0:00:10]} 25. Qf3 {[%clk 0:00:20]}  Ne7 {[%clk 0:00:03]} 26. Kh1 {[%clk 0:00:18]}  Rfg8 {[%clk 0:00:03]} 27. Rae1 {[%clk 0:00:16]}  Rg6 {[%clk 0:00:02]} 28. Re6 {[%clk 0:00:13]}  Rxe6 {[%clk 0:00:02]} 29. Nxe6 {[%clk 0:00:14]}  Ng6 {[%clk 0:00:02]} 30. Qe4 {[%clk 0:00:13]}  Ne5 {[%clk 0:00:02]} 31. Bf5 {[%clk 0:00:07]} 1-0


[Site "https://www.chess.com"]

[Event "Titled Tuesday Blitz June 07 Late 2022"]
[White "Ivanisevic, Ivan"]
[Black "Le Goff, Ronan"]
[WhiteFideId "912417"]
[BlackFideId "612073"]
[WhiteElo "2535"]
[BlackElo "2276"]
[Result "0-1"]
[Round "09"]
[TimeControl "180+1"]
[Date "2022.06.07"]
[WhiteClock "0:00:02"]
[BlackClock "0:00:06"]

1. e4 {[%clk 0:03:00]}  Nf6 {[%clk 0:02:58]} 2. e5 {[%clk 0:02:58]}  Nd5 {[%clk 0:02:56]} 3. d4 {[%clk 0:02:59]}  d6 {[%clk 0:02:56]} 4. f4 {[%clk 0:02:53]}  Bf5 {[%clk 0:02:41]} 5. Nf3 {[%clk 0:02:48]}  e6 {[%clk 0:02:41]} 6. Bd3 {[%clk 0:02:48]}  Bxd3 {[%clk 0:02:38]} 7. Qxd3 {[%clk 0:02:49]}  c5 {[%clk 0:02:33]} 8. O-O {[%clk 0:02:41]}  Nc6 {[%clk 0:02:30]} 9. f5 {[%clk 0:02:33]}  cxd4 {[%clk 0:02:16]} 10. fxe6 {[%clk 0:02:31]}  fxe6 {[%clk 0:02:16]} 11. Ng5 {[%clk 0:02:23]}  Qd7 {[%clk 0:02:08]} 12. Nf7 {[%clk 0:02:15]}  Nxe5 {[%clk 0:01:59]} 13. Nxe5 {[%clk 0:01:58]}  dxe5 {[%clk 0:02:00]} 14. Nd2 {[%clk 0:01:42]}  Nf6 {[%clk 0:01:54]} 15. Ne4 {[%clk 0:01:30]}  Nxe4 {[%clk 0:01:52]} 16. Qxe4 {[%clk 0:01:31]}  O-O-O {[%clk 0:01:50]} 17. Qxe5 {[%clk 0:01:19]}  Qd5 {[%clk 0:01:48]} 18. Bf4 {[%clk 0:01:17]}  Qxe5 {[%clk 0:01:41]} 19. Bxe5 {[%clk 0:01:18]}  Rd7 {[%clk 0:01:38]} 20. Rad1 {[%clk 0:01:10]}  Bc5 {[%clk 0:01:36]} 21. Rd3 {[%clk 0:01:10]}  Rhd8 {[%clk 0:01:33]} 22. Re1 {[%clk 0:00:59]}  b6 {[%clk 0:01:27]} 23. Re4 {[%clk 0:00:55]}  Kb7 {[%clk 0:01:21]} 24. a3 {[%clk 0:00:52]}  a5 {[%clk 0:01:21]} 25. Bg3 {[%clk 0:00:44]}  Re8 {[%clk 0:01:05]} 26. Kf2 {[%clk 0:00:43]}  Kc6 {[%clk 0:01:02]} 27. Ke2 {[%clk 0:00:43]}  e5 {[%clk 0:01:00]} 28. Rf3 {[%clk 0:00:40]}  Kd5 {[%clk 0:00:59]} 29. Kd3 {[%clk 0:00:40]}  Rde7 {[%clk 0:00:54]} 30. h4 {[%clk 0:00:37]}  Rc8 {[%clk 0:00:39]} 31. h5 {[%clk 0:00:35]}  Bxa3 {[%clk 0:00:35]} 32. Rf5 {[%clk 0:00:20]}  Bd6 {[%clk 0:00:33]} 33. Rg5 {[%clk 0:00:13]}  Rc4 {[%clk 0:00:20]} 34. c3 {[%clk 0:00:12]}  b5 {[%clk 0:00:08]} 35. cxd4 {[%clk 0:00:09]}  Ke6 {[%clk 0:00:08]} 36. dxe5 {[%clk 0:00:05]}  Rxe4 {[%clk 0:00:08]} 37. Kxe4 {[%clk 0:00:06]}  Bc5 {[%clk 0:00:07]} 38. Rg4 {[%clk 0:00:05]}  Rd7 {[%clk 0:00:07]} 39. Rg5 {[%clk 0:00:04]}  Bd4 {[%clk 0:00:07]} 40. Bh4 {[%clk 0:00:03]}  Bxb2 {[%clk 0:00:06]} 41. Bf2 {[%clk 0:00:02]}  a4 {[%clk 0:00:06]} 0-1


[Site "https://www.chess.com"]

[Event "Titled Tuesday Blitz June 07 Late 2022"]
[White "Ladan, Nicholas"]
[Black "Barria Zuniga, Daniel"]
[WhiteFideId "30918855"]
[BlackFideId "3400816"]
[WhiteElo "2167"]
[BlackElo "2414"]
[Result "0-1"]
[Round "09"]
[TimeControl "180+1"]
[Date "2022.06.07"]
[WhiteClock "0:00:08"]
[BlackClock "0:00:12"]

1. d4 {[%clk 0:03:00]}  d5 {[%clk 0:02:59]} 2. c4 {[%clk 0:03:00]}  e6 {[%clk 0:02:59]} 3. Nf3 {[%clk 0:03:00]}  Nf6 {[%clk 0:02:58]} 4. g3 {[%clk 0:03:01]}  Be7 {[%clk 0:02:57]} 5. Bg2 {[%clk 0:03:01]}  O-O {[%clk 0:02:58]} 6. O-O {[%clk 0:03:01]}  dxc4 {[%clk 0:02:58]} 7. Qa4 {[%clk 0:03:01]}  a6 {[%clk 0:02:57]} 8. Qxc4 {[%clk 0:03:02]}  b5 {[%clk 0:02:58]} 9. Qc2 {[%clk 0:03:02]}  Bb7 {[%clk 0:02:58]} 10. Bf4 {[%clk 0:03:03]}  Nd5 {[%clk 0:02:56]} 11. Nc3 {[%clk 0:02:57]}  Nxf4 {[%clk 0:02:47]} 12. gxf4 {[%clk 0:02:58]}  Nd7 {[%clk 0:02:47]} 13. Rfd1 {[%clk 0:02:56]}  Bd6 {[%clk 0:02:25]} 14. e3 {[%clk 0:02:51]}  Qe7 {[%clk 0:02:19]} 15. Ne4 {[%clk 0:02:46]}  Rac8 {[%clk 0:02:17]} 16. Rac1 {[%clk 0:02:44]}  Bxe4 {[%clk 0:02:09]} 17. Qxe4 {[%clk 0:02:43]}  c5 {[%clk 0:02:09]} 18. Ne5 {[%clk 0:02:22]}  f5 {[%clk 0:01:18]} 19. Qb7 {[%clk 0:02:19]}  Nxe5 {[%clk 0:01:17]} 20. dxe5 {[%clk 0:02:12]}  Bc7 {[%clk 0:01:10]} 21. Qxa6 {[%clk 0:02:10]}  b4 {[%clk 0:01:08]} 22. Qa4 {[%clk 0:01:50]}  Kh8 {[%clk 0:00:51]} 23. Rd7 {[%clk 0:01:47]}  Qh4 {[%clk 0:00:51]} 24. Qa7 {[%clk 0:01:22]}  Bb8 {[%clk 0:00:44]} 25. Qb7 {[%clk 0:01:22]}  g5 {[%clk 0:00:35]} 26. Qf3 {[%clk 0:00:34]}  Rg8 {[%clk 0:00:28]} 27. Rcd1 {[%clk 0:00:30]}  gxf4 {[%clk 0:00:25]} 28. exf4 {[%clk 0:00:31]}  Rg4 {[%clk 0:00:23]} 29. Qb7 {[%clk 0:00:25]}  Rcg8 {[%clk 0:00:22]} 30. Kh1 {[%clk 0:00:19]}  Rxg2 {[%clk 0:00:21]} 31. Qxg2 {[%clk 0:00:12]}  Rxg2 {[%clk 0:00:20]} 32. Kxg2 {[%clk 0:00:13]}  Qg4+ {[%clk 0:00:18]} 33. Kf1 {[%clk 0:00:12]}  Qxf4 {[%clk 0:00:18]} 34. Rd8+ {[%clk 0:00:12]}  Kg7 {[%clk 0:00:18]} 35. R1d7+ {[%clk 0:00:13]}  Kh6 {[%clk 0:00:18]} 36. Rxb8 {[%clk 0:00:12]}  Qxe5 {[%clk 0:00:18]} 37. Rbb7 {[%clk 0:00:13]}  Qxb2 {[%clk 0:00:17]} 38. Rxh7+ {[%clk 0:00:12]}  Kg5 {[%clk 0:00:17]} 39. Rbg7+ {[%clk 0:00:08]}  Kf6 {[%clk 0:00:17]} 40. f4 {[%clk 0:00:05]}  Qc1+ {[%clk 0:00:16]} 41. Ke2 {[%clk 0:00:06]}  Qxf4 {[%clk 0:00:16]} 42. Rf7+ {[%clk 0:00:06]}  Ke5 {[%clk 0:00:16]} 43. Rd7 {[%clk 0:00:05]}  Qc4+ {[%clk 0:00:16]} 44. Kf3 {[%clk 0:00:05]}  Qxa2 {[%clk 0:00:16]} 45. Rhe7 {[%clk 0:00:04]}  Qc4 {[%clk 0:00:15]} 46. Kg3 {[%clk 0:00:04]}  b3 {[%clk 0:00:15]} 47. Rb7 {[%clk 0:00:02]}  Qc3+ {[%clk 0:00:14]} 48. Kh4 {[%clk 0:00:02]}  b2 {[%clk 0:00:14]} 49. Rec7 {[%clk 0:00:02]}  Qd4+ {[%clk 0:00:12]} 50. Kh5 {[%clk 0:00:02]}  Ke4 {[%clk 0:00:12]} 51. Rc6 {[%clk 0:00:01]}  e5 {[%clk 0:00:12]} 52. Re6 {[%clk 0:00:01]}  f4 {[%clk 0:00:12]} 53. Rbe7 {[%clk 0:00:01]}  f3 {[%clk 0:00:12]} 54. Rxe5+ {[%clk 0:00:02]}  Qxe5+ {[%clk 0:00:12]} 55. Rxe5+ {[%clk 0:00:03]}  Kxe5 {[%clk 0:00:12]} 56. Kg6 {[%clk 0:00:04]}  f2 {[%clk 0:00:13]} 57. h4 {[%clk 0:00:05]}  f1=Q {[%clk 0:00:13]} 58. h5 {[%clk 0:00:06]}  Qg1+ {[%clk 0:00:13]} 59. Kh7 {[%clk 0:00:06]}  Qh1 {[%clk 0:00:14]} 60. h6 {[%clk 0:00:06]}  Qxh6+ {[%clk 0:00:14]} 61. Kg8 {[%clk 0:00:06]}  Qa6 {[%clk 0:00:13]} 62. Kh8 {[%clk 0:00:06]}  Qa7 {[%clk 0:00:14]} 63. Kg8 {[%clk 0:00:07]}  Kf6 {[%clk 0:00:13]} 64. Kh8 {[%clk 0:00:08]}  Qg7# {[%clk 0:00:12]} 0-1


[Site "https://www.chess.com"]